bitfinex-derivatives/quotes_ETHF0:USTF0_20241004
["timestamp","ask_amount","ask_price","bid_price","bid_amount"]
[1728043608587,4.10017,2384.3,2384.0,4.1944]
[1728043608890,0.41947,2384.3,2384.2,0.41949]
[1728043609384,0.41947,2384.3,2384.2,0.84109]
[1728043609683,0.41946,2384.5,2384.4,0.41944]
[1728043612183,0.41945,2384.4,2384.3,0.3937]
[1728043613184,0.41945,2384.4,2384.3,0.81317]
[1728043613387,0.41945,2384.4,2384.3,0.3937]
[1728043613792,4.53526,2384.5,2384.2,0.4216]
[1728043614091,3.68947,2384.3,2384.2,0.4216]
[1728043614487,3.68947,2384.3,2384.2,0.84109]
[1728043614688,3.68947,2384.3,2384.2,0.4216]
[1728043615088,6.89727,2384.3,2384.2,0.84109]
[1728043615595,10.6722,2384.3,2383.8,0.098]
[1728043615792,0.41954,2384.0,2383.9,1.21902]
[1728043615990,0.41954,2384.0,2383.9,0.7995]
[1728043616198,0.41954,2384.0,2383.9,1.21904]
[1728043616588,0.41954,2384.0,2383.9,0.7995]
[1728043616892,0.41954,2384.0,2383.9,1.21904]
[1728043623590,0.41954,2384.0,2383.9,0.7995]
[1728043623796,0.41954,2384.0,2383.9,1.21904]
[1728043624602,0.41954,2384.0,2383.9,0.7995]
[1728043624804,0.41954,2383.9,2383.8,0.82215]
[1728043625006,0.82124,2383.9,2383.8,0.82215]
[1728043625405,0.82124,2383.9,2383.8,0.4026]
[1728043625607,7.8669,2383.9,2383.5,3.3058]
[1728043625802,3.27,2383.6,2383.4,0.41962]
[1728043626005,0.41961,2383.5,2383.4,0.41962]
[1728043626904,0.41963,2383.4,2383.3,1.64003]
[1728043627499,0.55712,2383.5,2383.4,0.41963]
[1728043629702,0.1375,2383.5,2383.4,0.41963]
[1728043629898,0.55711,2383.5,2383.4,0.41963]
[1728043630701,0.1375,2383.5,2383.4,0.41963]
[1728043630909,0.1375,2383.5,2383.4,4.61483]
[1728043636816,0.55711,2383.5,2383.4,0.41963]
[1728043637314,0.55711,2383.5,2383.3,1.2204]
[1728043637315,0.1375,2383.5,2383.3,1.2204]
[1728043637509,3.27,2383.4,2383.0,3.3058]
[1728043637703,3.27,2383.4,2383.1,0.41967]
[1728043637704,3.68968,2383.2,2383.1,0.41967]
[1728043638111,0.41968,2383.2,2383.1,0.41967]
[1728043647629,0.84696,2383.3,2383.2,0.41966]
[1728043648519,0.41964,2383.4,2383.3,0.41964]
[1728043648722,0.1375,2383.5,2383.4,0.41963]
[1728043648915,0.098,2383.9,2383.8,0.41956]
[1728043649124,0.41952,2384.1,2384.0,0.41952]
[1728043649517,4.61392,2384.1,2384.0,0.41952]
[1728043650021,4.1944,2384.1,2383.8,0.4023]
[1728043650217,0.41954,2384.0,2383.9,0.41952]
[1728043653337,0.41954,2384.0,2383.9,0.81082]
[1728043654026,0.41963,2383.5,2383.2,4.148]
[1728043654328,0.41964,2383.3,2383.2,1.59495]
[1728043654930,3.6972,2383.5,2383.2,1.1753]
[1728043655126,0.41964,2383.4,2383.3,0.41963]
[1728043663235,0.0996,2384.0,2383.3,3.27]
[1728043663427,0.41958,2383.7,2383.6,0.41957]
[1728043674845,0.41958,2383.7,2383.6,1.23107]
[1728043677150,0.41957,2383.8,2383.7,0.41956]
[1728043678145,0.0016,2384.0,2383.6,0.8115]
[1728043678341,0.42113,2384.0,2383.9,0.41954]
[1728043678645,0.0016,2384.0,2383.9,0.41954]
[1728043678945,0.41951,2384.1,2384.0,0.41952]
[1728043681148,1.92951,2384.1,2384.0,0.41952]
[1728043681749,0.41954,2384.0,2383.9,0.41952]
[1728043684453,1.92952,2384.1,2384.0,0.41952]
[1728043684654,0.41954,2384.0,2383.9,0.41952]
[1728043684854,0.81534,2384.0,2383.9,0.41952]
[1728043687351,0.41954,2384.0,2383.9,0.41952]
[1728043689452,1.51,2384.2,2383.8,0.4169]
[1728043689653,0.41951,2384.1,2384.0,0.4195]
[1728043689857,0.41951,2384.1,2384.0,1.2397]
[1728043690454,1.9295,2384.2,2384.1,0.4195]
[1728043690849,6.1239,2384.2,2384.1,0.8431]
[1728043691656,0.3898,2384.3,2384.1,0.4236]
[1728043691853,0.3898,2384.3,2384.2,0.41949]
[1728043692057,4.6938,2384.8,2384.2,0.41949]
[1728043692058,1.51,2384.7,2384.2,1.92949]
[1728043692364,0.41943,2384.6,2384.5,0.41942]
[1728043692654,0.41943,2384.6,2384.5,0.82842]
[1728043693157,0.41943,2384.5,2384.4,0.4114]
[1728043693359,1.92943,2384.5,2384.4,0.83085]
[1728043693651,1.92943,2384.5,2384.4,0.4114]
[1728043693860,1.92943,2384.5,2384.4,0.83085]
[1728043694655,1.4681,2384.4,2384.3,0.41946]
[1728043694856,2.3315,2384.4,2384.0,0.4863]
[1728043695057,1.9295,2384.1,2384.0,0.41951]
[1728043695252,1.51,2384.1,2383.9,0.7974]
[1728043695554,0.41956,2383.8,2383.7,0.51757]
[1728043695747,0.41956,2383.8,2383.6,3.2078]
[1728043695748,0.41957,2383.7,2383.6,3.62738]
[1728043696755,0.41957,2383.8,2383.7,0.41956]
[1728043704767,0.41956,2383.9,2383.8,0.41955]
[1728043704965,0.41957,2383.8,2383.7,0.41956]
[1728043705659,2.29294,2384.0,2383.5,5.49623]
[1728043705867,0.41955,2383.9,2383.8,0.41954]
[1728043708070,0.3962,2384.0,2383.9,0.41954]
[1728043708265,0.41951,2384.1,2384.0,0.4195]
[1728043708563,0.41955,2383.9,2383.8,0.41955]
[1728043708774,0.41955,2383.9,2383.7,1.26277]
[1728043708775,0.41958,2383.8,2383.7,1.26277]
[1728043708958,0.82628,2383.8,2383.7,0.41957]
[1728043710972,8.29148,2383.8,2383.5,1.2581]
[1728043711162,0.41961,2383.5,2383.4,0.41962]
[1728043711566,0.41963,2383.4,2383.3,3.62743]
[1728043711774,0.84713,2383.4,2383.3,3.62743]
[1728043712173,0.84713,2383.4,2383.3,3.2078]
[1728043712369,0.84713,2383.4,2383.3,3.62744]
[1728043713063,0.4275,2383.4,2383.3,3.62744]
[1728043713272,0.84713,2383.4,2383.3,3.62744]
[1728043713463,0.4275,2383.4,2383.3,3.62744]
[1728043714170,0.4084,2383.6,2383.3,3.2078]
[1728043714378,0.3992,2383.6,2383.4,0.41961]
[1728043714578,0.41962,2383.5,2383.4,0.41962]
[1728043721071,0.41963,2383.4,2383.3,1.92963]
[1728043721272,0.41964,2383.3,2383.2,4.85685]
[1728043721478,0.84484,2383.3,2383.2,4.85685]
[1728043722282,0.84484,2383.3,2383.2,4.4372]
[1728043723586,0.84484,2383.3,2383.2,4.85686]
[1728043723786,0.84484,2383.3,2383.2,4.4372]
[1728043724678,0.84484,2383.3,2383.2,1.2294]
[1728043729189,0.84484,2383.3,2383.2,1.64906]
[1728043729695,0.84484,2383.3,2383.2,1.2294]
[1728043730089,0.84484,2383.3,2383.2,1.64906]
[1728043730690,0.41964,2383.3,2383.2,1.64906]
[1728043731293,1.0647608,2386.9,2383.7,0.41957]
[1728043731294,4.67619,2383.9,2383.7,0.41957]
[1728043731494,4.67619,2383.9,2383.8,0.8173]
[1728043731495,3.62734,2383.9,2383.8,0.8173]
[1728043731890,3.62734,2383.9,2383.8,1.2331]
[1728043732092,0.41954,2383.9,2383.8,1.2331]
[1728043738299,0.41954,2383.9,2383.8,2.7431]
[1728043738803,0.41954,2383.9,2383.8,1.2331]
[1728043739003,1.92954,2383.9,2383.8,1.2331]
[1728043739698,0.41963,2383.4,2383.3,0.098]
[1728043739901,0.41963,2383.4,2383.3,0.84074]
[1728043740094,0.41963,2383.4,2383.3,0.4211]
[1728043741508,1.92963,2383.4,2383.3,0.4211]
[1728043742411,1.92963,2383.4,2382.8,3.72552]
[1728043742412,0.41971,2382.9,2382.8,3.72552]
[1728043742612,0.41971,2382.9,2382.8,3.62752]
[1728043744515,1.51,2383.0,2382.4,4.25727]
[1728043744714,0.41975,2382.8,2382.7,0.41974]
[1728043745407,0.4261,2382.9,2382.5,2.714]
[1728043745614,1.47542,2382.9,2382.5,2.714]
[1728043745911,0.41975,2382.8,2382.7,0.41974]
[1728043746111,0.41976,2382.7,2382.6,0.41976]
[1728043746612,0.41976,2382.7,2382.6,0.41975]
[1728043747405,0.41974,2382.8,2382.7,0.41974]
[1728043750017,0.41975,2382.7,2382.6,1.92975]
[1728043750513,0.41975,2382.8,2382.7,0.41974]
[1728043751016,0.56805,2382.8,2382.7,0.41974]
[1728043753814,0.1483,2382.8,2382.6,1.51]
[1728043754016,0.41977,2382.7,2382.6,0.41975]
[1728043755113,0.56805,2382.8,2382.7,0.41975]
[1728043755714,0.56805,2382.8,2382.5,2.714]
[1728043755920,0.41977,2382.6,2382.5,1.204]
[1728043756926,0.41977,2382.6,2382.5,1.62379]
[1728043757115,0.41977,2382.6,2382.5,1.204]
[1728043757422,1.92977,2382.6,2382.5,1.204]
[1728043758624,1.51,2382.6,2382.4,3.2078]
[1728043758822,1.92977,2382.6,2382.5,1.2127]
[1728043762137,3.3561,2382.8,2382.5,1.2127]
[1728043762437,0.41977,2382.7,2382.6,0.41976]
[1728043763238,0.41977,2382.7,2382.5,3.14247]
[1728043763239,0.41977,2382.6,2382.5,3.14247]
[1728043763636,0.41977,2382.6,2382.5,1.63247]
[1728043775730,0.56817,2382.6,2382.5,1.63247]
[1728043791940,0.56817,2382.6,2382.5,1.2127]
[1728043792245,0.96127,2382.6,2382.5,1.63249]
[1728043798845,0.1484,2382.6,2382.5,7.33929]
[1728043799045,0.41974,2382.9,2382.8,0.41972]
[1728043799248,0.41973,2382.8,2382.7,1.92974]
[1728043800840,1.46915,2382.7,2382.6,0.41975]
[1728043801038,0.41977,2382.7,2382.6,0.41975]
[1728043802249,1.51,2382.9,2382.5,1.9141]
[1728043802449,0.41969,2383.1,2383.0,0.4197]
[1728043804857,1.51,2383.4,2382.9,1.9052]
[1728043805153,0.41966,2383.2,2383.1,1.92966]
[1728043806051,0.41965,2383.3,2383.2,0.41964]
[1728043807357,0.41966,2383.2,2383.1,1.92966]
[1728043807756,0.41966,2383.3,2383.2,0.41964]
[1728043810359,0.41966,2383.3,2383.2,0.81724]
[1728043812857,0.41966,2383.3,2383.2,1.21894]
[1728043814259,0.41966,2383.3,2383.2,0.7993]
[1728043814561,0.41966,2383.3,2383.1,0.41967]
[1728043814562,0.4197,2383.0,2382.9,0.81491]
[1728043814971,1.51,2383.0,2382.7,0.8188]
[1728043815266,0.41973,2382.8,2382.7,0.8188]
[1728043816557,0.84323,2382.9,2382.8,0.41973]
[1728043816767,0.41973,2382.9,2382.8,0.41973]
[1728043825564,0.41973,2382.9,2382.8,1.92973]
[1728043826863,0.82409,2383.1,2383.0,0.4197]
[1728043827165,1.04914,2383.3,2383.2,0.41964]
[1728043827166,0.41966,2383.3,2383.2,0.41964]
[1728043829872,4.68404,2383.5,2383.1,2.7102]
[1728043830075,4.68404,2383.5,2383.3,1.51]
[1728043830076,3.2078,2383.5,2383.3,1.51]
[1728043830372,3.62743,2383.5,2383.4,0.41963]
[1728043830560,3.62743,2383.5,2383.4,0.81093]
[1728043832267,3.62743,2383.5,2383.4,0.3913]
[1728043832466,3.62743,2383.5,2383.4,0.81093]
[1728043833168,0.41963,2383.5,2383.4,0.81093]
[1728043833565,0.41963,2383.5,2383.4,0.3913]
[1728043833770,0.41963,2383.5,2383.2,0.82445]
[1728043833771,0.41964,2383.3,2383.2,0.82445]
[1728043834276,0.82244,2383.3,2383.2,0.82445]
[1728043834672,0.41964,2383.3,2383.2,0.82445]
[1728043834873,1.8969,2383.5,2383.2,1.9148]
[1728043835068,1.8969,2383.5,2383.4,0.41963]
[1728043835069,0.80653,2383.5,2383.4,0.41963]
[1728043837279,0.41964,2383.3,2383.2,0.82446]
[1728043839279,0.3869,2383.5,2383.2,0.4048]
[1728043839575,0.41962,2383.5,2383.4,0.41963]
[1728043840886,0.83372,2383.5,2383.4,0.41963]
[1728043841273,0.41964,2383.3,2383.2,0.82445]
[1728043841485,0.41964,2383.4,2383.3,0.41963]
[1728043852183,0.41964,2383.3,2383.2,0.82445]
[1728043853390,0.41964,2383.3,2383.2,0.82446]
[1728043853579,0.81384,2383.4,2383.1,0.7852]
[1728043853776,1.9102,2383.2,2382.8,3.2078]
[1728043853979,1.04926,2383.0,2382.7,0.5223]
[1728043854186,0.41973,2382.8,2382.7,0.4243]
[1728043854586,4.1968,2382.8,2382.6,0.82955]
[1728043854880,0.41975,2382.7,2382.6,0.82955]
[1728043858793,0.41975,2382.7,2382.6,0.4098]
[1728043859093,0.41975,2382.7,2382.6,0.82957]
[1728043859591,0.41975,2382.8,2382.7,0.41973]
[1728043862491,3.2078,2382.9,2382.6,1.9198]
[1728043862691,3.62752,2382.9,2382.8,1.92973]
[1728043865490,3.2078,2382.9,2382.8,1.92973]
[1728043865690,0.098,2383.3,2382.9,1.04928]
[1728043865889,0.41966,2383.3,2383.2,1.92964]
[1728043866394,0.42124,2383.4,2383.3,0.41964]
[1728043867292,0.0016,2383.4,2383.3,0.41964]
[1728043868091,0.0016,2383.4,2383.3,4.61564]
[1728043868290,0.41958,2383.7,2383.4,0.41963]
[1728043868603,0.41958,2383.7,2383.5,2.3481]
[1728043869093,0.41958,2383.7,2383.5,1.9285]
[1728043869292,1.04887,2383.9,2383.5,1.9285]
[1728043869489,0.41959,2383.6,2383.5,2.3481]
[1728043870290,1.9181,2383.8,2383.5,1.9285]
[1728043870482,0.41957,2383.7,2383.5,2.3481]
[1728043870685,0.41959,2383.6,2383.5,2.3481]
[1728043871283,0.41959,2383.6,2383.5,2.34811]
[1728043871489,0.41959,2383.6,2383.5,2.74711]
[1728043871894,0.41959,2383.7,2383.6,0.41959]
[1728043872896,0.41959,2383.6,2383.5,2.7471]
[1728043873692,0.41963,2383.4,2383.3,0.41963]
[1728043873897,0.41963,2383.5,2383.4,0.41963]
[1728043874788,0.41963,2383.5,2383.3,1.1839]
[1728043874988,0.41963,2383.4,2383.3,1.60353]
[1728043876403,0.41962,2383.5,2383.4,0.41963]
[1728043876704,0.41962,2383.5,2383.3,1.60353]
[1728043876889,0.41962,2383.5,2383.4,0.41963]
[1728043877193,0.41963,2383.4,2383.3,1.60354]
[1728043877388,1.04899,2383.6,2383.3,1.60354]
[1728043877585,0.41963,2383.4,2383.3,1.60354]
[1728043877886,0.41959,2383.6,2383.5,0.4196]
[1728043879092,0.41959,2383.6,2383.4,1.51]
[1728043879300,0.41961,2383.6,2383.5,0.41961]
[1728043879694,0.41958,2383.7,2383.6,0.41958]
[1728043880400,0.41958,2383.7,2383.6,1.51]
[1728043880602,0.41958,2383.7,2383.6,1.92959]
[1728043880998,0.41957,2383.8,2383.7,0.41956]
[1728043881193,0.41957,2383.8,2383.7,1.26036]
[1728043887110,0.41956,2383.9,2383.8,0.41954]
[1728043887402,5.31787668,2384.0,2383.9,0.41954]
[1728043888101,4.90237668,2384.0,2383.9,0.41954]
[1728043890309,3.62732,2384.1,2384.0,0.41952]
[1728043890497,0.7956,2384.3,2384.0,0.41952]
[1728043890498,4.8158,2384.6,2384.0,6.12392]
[1728043890696,4.8158,2384.6,2384.2,1.92946]
[1728043890697,0.41948,2384.3,2384.2,1.92946]
[1728043891003,0.41946,2384.4,2384.3,0.41945]
[1728043891304,0.41944,2384.5,2384.4,0.41943]
[1728043891697,0.41945,2384.4,2384.3,1.92945]
[1728043892298,0.41943,2384.6,2384.5,0.41942]
[1728043892600,4.64432,2384.7,2384.6,0.4194]
[1728043892601,0.41941,2384.7,2384.6,0.4194]
[1728043892805,0.41941,2384.7,2384.6,1.2494]
[1728043893200,4.2562,2385.0,2384.6,0.83]
[1728043893395,2.95712,2385.2,2384.9,1.51]
[1728043893595,2.95712,2385.2,2385.0,1.9197]
[1728043893596,0.41933,2385.1,2385.0,1.9197]
[1728043893904,0.41933,2385.1,2385.0,0.4097]
[1728043894203,0.41933,2385.1,2385.0,0.82905]
[1728043894640,1.04818,2385.5,2385.0,9.7196]
[1728043894905,1.04818,2385.5,2385.4,1.92927]
[1728043894906,0.41927,2385.5,2385.4,1.92927]
[1728043895094,0.41927,2385.5,2385.4,1.51]
[1728043895300,12.48641662,2385.8,2385.4,1.51]
[1728043895301,3.2078,2385.8,2385.4,1.51]
[1728043895495,0.41923,2385.7,2385.6,0.41923]
[1728043895711,0.41923,2385.7,2385.6,1.92923]
[1728043896204,0.41923,2385.7,2385.6,1.51]
[1728043896599,0.41923,2385.7,2385.6,1.92924]
[1728043897202,0.41923,2385.7,2385.6,1.51]
[1728043897398,1.51,2386.0,2385.6,1.51]
[1728043897600,0.41921,2385.8,2385.6,3.68922]
[1728043897810,0.4192,2385.9,2385.7,0.81241]
[1728043898506,4.0168,2386.2,2385.8,3.27]
[1728043898703,0.41918,2386.0,2385.8,3.68919]
[1728043899002,4.0168,2386.2,2385.8,3.27]
[1728043899207,4.0168,2386.2,2385.7,4.08241]
[1728043899208,0.41919,2385.9,2385.7,4.08241]
[1728043899513,0.41919,2386.0,2385.8,0.4192]
[1728043900213,0.41919,2385.9,2385.7,4.08241]
[1728043900421,0.41918,2386.0,2385.8,0.4192]
[1728043900606,4.0168,2386.2,2385.8,0.4192]
[1728043900905,0.41918,2386.0,2385.8,0.4192]
[1728043901209,0.41918,2386.0,2385.7,4.49121]
[1728043901405,0.41918,2386.0,2385.8,0.4192]
[1728043902110,4.0168,2386.2,2385.7,4.072]
[1728043902417,0.4192,2385.8,2385.7,0.3932]
[1728043902609,0.41922,2385.7,2385.6,3.2078]
[1728043902802,4.2558,2385.9,2385.3,0.4927]
[1728043902803,0.41927,2385.4,2385.3,0.4927]
[1728043903107,0.41933,2385.1,2385.0,0.5026]
[1728043903309,0.41933,2385.1,2385.0,0.4046]
[1728043904411,0.41932,2385.2,2385.0,0.82394]
[1728043905009,48.1149,2385.6,2385.0,0.4046]
[1728043905208,0.41932,2385.2,2385.0,0.82393]
[1728043905409,1.04819,2385.4,2385.0,0.4046]
[1728043905616,0.41933,2385.1,2385.0,0.4046]
[1728043906009,0.41932,2385.2,2385.0,0.82394]
[1728043907017,0.41932,2385.2,2385.0,0.4046]
[1728043907318,0.41932,2385.2,2385.1,3.68933]
[1728043908111,0.41932,2385.2,2385.1,3.27]
[1728043910019,0.41932,2385.2,2385.1,3.68933]
[1728043910217,4.0449,2385.6,2385.1,3.27]
[1728043910418,0.41928,2385.4,2385.3,3.68929]
[1728043910719,2.648,2385.9,2385.3,3.27]
[1728043910918,0.41927,2385.5,2385.4,0.3997]
[1728043913119,0.41927,2385.5,2385.4,0.81897]
[1728043914317,0.41927,2385.5,2385.4,0.3997]
[1728043914717,0.41927,2385.5,2385.4,0.81897]
[1728043916014,0.41927,2385.5,2385.4,0.3997]
[1728043916417,0.41931,2385.3,2385.2,0.41931]
[1728043916617,1.04819,2385.5,2385.1,3.6823]
[1728043916922,0.41931,2385.2,2385.1,4.10161]
[1728043918321,0.41929,2385.4,2385.3,0.41928]
[1728043918715,0.41929,2385.4,2385.3,3.68928]
[1728043919516,0.41929,2385.4,2385.3,3.27]
[1728043920417,0.41929,2385.4,2385.3,3.68929]
[1728043921023,0.41929,2385.4,2385.3,3.27]
[1728043922223,0.41931,2385.2,2385.1,3.6823]
[1728043922425,0.41931,2385.2,2385.1,0.4123]
[1728043923332,0.41931,2385.2,2385.1,0.83163]
[1728043923519,0.41931,2385.2,2385.1,4.10163]
[1728043924832,0.4193,2385.3,2385.2,0.4193]
[1728043925222,0.4193,2385.3,2385.1,3.6823]
[1728043925223,1.04824,2385.4,2385.1,3.6823]
[1728043925428,0.41931,2385.2,2385.1,4.10161]
[1728043925938,0.41929,2385.4,2385.3,0.41928]
[1728043927127,3.2078,2385.6,2385.3,3.27]
[1728043927128,4.25591,2385.6,2385.3,3.27]
[1728043927331,0.41927,2385.5,2385.4,4.07686]
[1728043928720,3.2078,2385.6,2385.5,0.41926]
[1728043928930,3.62704,2385.6,2385.5,0.41926]
[1728043929136,3.2078,2385.6,2385.5,0.41926]
[1728043929429,3.2078,2385.6,2385.5,4.61126]
[1728043929632,0.41918,2386.1,2386.0,0.41916]
[1728043930226,0.41918,2386.1,2385.9,3.6591]
[1728043930452,0.41917,2386.0,2385.9,4.07828]
[1728043930631,0.41917,2386.0,2385.9,0.3891]
[1728043930833,0.41917,2386.0,2385.9,0.80829]
[1728043933431,5.23913,2386.0,2385.6,3.78723]
[1728043933634,1.04802,2385.8,2385.5,3.6199]
[1728043933831,0.41924,2385.6,2385.5,3.6199]
[1728043934733,0.41924,2385.6,2385.5,4.03916]
[1728043937833,0.41924,2385.6,2385.5,0.83136]
[1728043938839,0.41924,2385.6,2385.5,0.4121]
[1728043942640,0.41924,2385.6,2385.5,0.83136]
[1728043943740,0.41924,2385.6,2385.5,0.4121]
[1728043944447,0.41924,2385.6,2385.4,4.08357]
[1728043944448,7.3998,2385.6,2385.2,0.7955]
[1728043944647,0.80757,2385.5,2385.4,0.41927]
[1728043945453,0.41927,2385.5,2385.4,0.41927]
[1728043945949,0.41927,2385.4,2385.3,3.68928]
[1728043947139,0.41929,2385.3,2385.2,4.48481]
[1728043947351,1.04815,2385.5,2385.2,4.0655]
[1728043947540,0.41929,2385.4,2385.3,1.92929]
[1728043948145,0.41929,2385.4,2385.3,1.51]
[1728043950339,0.41929,2385.4,2385.1,0.3872]
[1728043950544,0.41929,2385.4,2384.7,0.17636793]
[1728043950545,1.04824,2385.3,2384.9,2.306]
[1728043950755,0.41931,2385.2,2385.1,1.92932]
[1728043951246,0.41931,2385.2,2385.1,1.51]
[1728043951453,0.41931,2385.2,2385.1,1.92933]
[1728043951754,0.41931,2385.2,2385.1,1.51]
[1728043952855,0.41931,2385.2,2385.1,1.92933]
[1728043953853,0.41931,2385.2,2385.1,1.51]
[1728043958550,0.41931,2385.2,2385.1,1.92933]
[1728043958858,0.41931,2385.2,2385.1,1.51]
[1728043959057,0.41931,2385.2,2385.1,1.92933]
[1728043959354,0.4193,2385.3,2385.2,0.41931]
[1728043960150,0.41931,2385.2,2385.1,1.92932]
[1728043962252,0.41933,2385.1,2385.0,0.41934]
[1728043964659,0.41935,2385.0,2384.9,3.14945]
[1728043964963,0.41935,2385.0,2384.9,2.7301]
[1728043965156,0.41935,2385.0,2384.9,1.2201]
[1728043967261,0.41935,2385.0,2384.9,3.14946]
[1728043969155,1.04829,2385.2,2384.9,3.14946]
[1728043969156,1.04829,2385.2,2384.9,2.7301]
[1728043969356,0.41932,2385.2,2385.1,1.51]
[1728043970262,1.04824,2385.3,2384.9,3.14945]
[1728043970466,1.04824,2385.3,2384.9,2.7301]
[1728043970467,0.41935,2385.0,2384.9,2.7301]
[1728043971171,0.41935,2385.0,2384.9,1.2201]
[1728043971467,0.4194,2384.7,2384.6,0.098]
[1728043971658,0.4194,2384.7,2384.6,0.3882]
[1728043972160,0.4194,2384.7,2384.6,0.8076]
[1728043972364,0.4194,2384.7,2384.6,0.3882]
[1728043975455,3.6272,2384.7,2384.6,0.3882]
[1728043976158,0.41942,2384.6,2384.5,0.8336]
[1728043976359,0.41947,2384.3,2384.2,0.4191]
[1728043976572,0.41947,2384.3,2384.2,1.206]
[1728043977863,0.41947,2384.3,2384.2,0.3999]
[1728043978070,0.41952,2384.0,2383.9,0.8273]
[1728043978253,0.41952,2384.0,2383.9,1.24684]
[1728043978966,0.41952,2384.0,2383.9,0.8273]
[1728043979162,0.41952,2384.0,2383.9,1.24684]
[1728043980065,0.41952,2384.0,2383.9,0.8273]
[1728043980268,4.72276,2384.2,2383.8,0.3876]
[1728043980269,0.41954,2383.9,2383.8,0.3876]
[1728043981360,0.41956,2383.8,2383.7,0.4258]
[1728043981670,0.41956,2383.8,2383.4,3.3058]
[1728043981671,0.41959,2383.6,2383.5,0.8023]
[1728043981866,0.41959,2383.6,2383.5,1.2281]
[1728043983265,0.41959,2383.6,2383.5,1.64771]
[1728043983471,0.41959,2383.6,2383.5,1.2281]
[1728043984171,0.41959,2383.6,2383.5,0.8322]
[1728043984763,0.41959,2383.6,2383.5,1.25181]
[1728043985272,4.65813,2383.8,2383.5,0.8322]
[1728043985473,0.41958,2383.7,2383.6,0.41959]
[1728043986170,0.41959,2383.6,2383.5,0.8322]
[1728043986470,0.41959,2383.6,2383.2,0.3985]
[1728043986471,0.41964,2383.3,2383.2,0.3985]
[1728043986967,0.41964,2383.3,2383.2,0.81816]
[1728043987170,0.41964,2383.3,2383.2,0.3985]
[1728043987373,0.405,2383.4,2383.3,0.41964]
[1728043987374,0.82463,2383.4,2383.3,0.41964]
[1728043988469,0.429,2383.5,2383.4,0.41963]
[1728043988470,0.41962,2383.5,2383.4,0.41963]
[1728043988676,0.4196,2383.6,2383.5,0.4196]
[1728043989282,0.41961,2383.5,2383.4,0.41962]
[1728043989577,0.4196,2383.6,2383.5,1.25481]
[1728043989775,3.6192,2383.8,2383.5,0.8352]
[1728043989973,3.2078,2383.8,2383.6,0.4162]
[1728043990166,3.62737,2383.8,2383.7,0.41957]
[1728043990781,7.82257,2383.8,2383.7,0.41957]
[1728043991081,3.62737,2383.8,2383.7,0.41957]
[1728043991570,0.41957,2383.7,2383.6,0.83578]
[1728043992782,3.62737,2383.8,2383.7,0.41957]
[1728043993279,0.41959,2383.6,2383.5,0.8352]
[1728043993577,0.41959,2383.6,2383.3,3.2078]
[1728043993578,4.0918,2383.7,2382.9,7.4688]
[1728043993782,0.41964,2383.3,2383.2,0.3938]
[1728043994474,0.41964,2383.3,2383.2,0.81346]
[1728043996375,1.04907,2383.5,2383.2,0.81346]
[1728043996574,4.0918,2383.7,2383.5,0.4196]
[1728043996575,0.41961,2383.6,2383.5,0.4196]
[1728043997580,0.41961,2383.6,2383.5,0.8298]
[1728044010395,0.41961,2383.6,2383.5,0.8016]
[1728044011094,0.41961,2383.6,2383.5,1.22121]
[1728044012497,1.47547,2383.9,2383.6,0.41957]
[1728044012498,0.41959,2383.7,2383.6,0.41957]
[1728044012890,0.41957,2383.8,2383.7,0.41956]
[1728044013090,0.41955,2383.9,2383.8,0.41954]
[1728044016801,3.62731,2384.1,2384.0,0.41952]
[1728044017804,0.41951,2384.1,2384.0,0.41952]
[1728044022803,0.41952,2384.0,2383.9,0.4208]
[1728044023010,0.82002,2384.0,2383.9,0.4208]
[1728044024107,0.82002,2384.0,2383.9,0.84034]
[1728044029115,0.82002,2384.0,2383.9,0.41954]
[1728044037222,0.41956,2383.9,2383.7,4.4225]
[1728044037520,1.51,2383.8,2383.7,4.84207]
[1728044037726,0.41955,2383.9,2383.8,0.41956]
[1728044040421,0.41956,2383.8,2383.7,4.84207]
[1728044040811,7.3288,2384.4,2383.7,4.4225]
[1728044041017,0.41952,2384.1,2384.0,0.4195]
[1728044043418,0.41955,2383.9,2383.8,0.41953]
[1728044045625,1.51,2384.0,2383.7,4.4225]
[1728044045824,1.92954,2384.0,2383.9,0.41954]
[1728044047323,0.41954,2384.0,2383.9,0.41954]
[1728044050419,0.41954,2384.0,2383.7,4.4225]
[1728044050420,0.41956,2383.9,2383.7,4.4225]
[1728044050723,0.41961,2383.6,2383.5,0.4196]
[1728044051028,1.92961,2383.6,2383.5,0.4196]
[1728044051324,0.41961,2383.5,2383.4,1.65352]
[1728044051520,0.41961,2383.5,2383.4,1.2339]
[1728044052029,0.83151,2383.5,2383.4,1.2339]
[1728044052216,2.34151,2383.5,2383.4,1.2339]
[1728044052420,2.34151,2383.5,2383.4,1.65353]
[1728044052625,2.34151,2383.5,2383.4,1.2339]
[1728044053822,2.34151,2383.5,2383.4,1.65353]
[1728044055131,1.04908,2383.4,2382.9,0.098]
[1728044055430,0.41969,2383.1,2383.0,1.2343]
[1728044055834,0.41969,2383.1,2382.9,0.4168]
[1728044056024,1.51,2383.0,2382.7,0.098]
[1728044056220,1.51,2382.8,2382.6,4.0423]